Cogmind - Beta 11 X5 @@@ ROGUE MODE // 2021.07.10 @ 00:44:13 Player: AlmondRoll Result: Self-destructed Performance ------------- Evolutions (7) 3500 Regions Visited (14) 2800 Robots Destroyed (269) 1345 Value Destroyed (8941) 8941 Prototype IDs (44) 880 Alien Tech Used (2) 400 Bonus (1410) 1410 TOTAL SCORE: 19276 Bonus ------- High Alert Combat Kills 1079 Follower Combat Kills 52 Met Zhirov 300 Friendly Fire -21 Cogmind --------- Core Integrity 505/1300 Matter 15/300 Energy 100/100 System Corruption 0% Temperature Cool (0) Movement Core (50) Location -3/Research Parts ------- > --- POWER (2) -------- (None) > --- PROPULSION (5) --- (None) > --- UTILITY (12) ----- System Shield > --- WEAPON (2) ------- (None) > --- INVENTORY (5) ---- Advanced Energy Well (500) Particle Accelerator Quantum Capacitor Phasing Sabre Peak State ------------ > --- POWER ------------ Micro Fission Core > --- PROPULSION ------- Centrium Wheel Combat Airjet Combat Airjet Combat Airjet Combat Gravmag System > --- UTILITY ---------- Advanced Cooling System High-capacity Storage Unit Enhanced Optical Array Advanced Signal Interpreter Improved Utility Shielding Improved Medium Armor Plating Improved Hacking Suite Improved Hacking Suite Improved Hacking Suite Advanced Hacking Suite System Shield > --- WEAPON ----------- Greatsword > --- INVENTORY -------- Micro Fission Core Combat Airjet Combat Airjet Combat Airjet Advanced Energy Well Advanced Weight Redist. System Improved Sensor Array Improved Sensor Array Particle Accelerator Quantum Capacitor Improved Utility Shielding Experimental Weapon Shielding Makeshift Armor Plating Advanced Shield Generator Transdimensional Reconstructor Enhanced Gauss Cannon Scatter Rocket Array Scatter Rocket Array Phasing Sabre [Rating: 101] Favorites ----------- Power Micro Fission Core Engine Heavy Ion Engine Power Core Micro Fission Core Reactor Cold Fusion Reactor Propulsion Combat Airjet Treads Light Treads Leg Flexi-carbon Leg Wheel Armored Wheel Hover Unit Combat Airjet Flight Unit Cooled Impulse Thruster Utility Hacking Suite Device Improved Sensor Array Storage High-capacity Storage Unit Processor Advanced Signal Interpreter Hackware Hacking Suite Protection Improved Utility Shielding Weapon Greatsword Energy Gun Precision Beam Rifle Energy Cannon Plasma Cannon Ballistic Gun Enhanced Autogun Ballistic Cannon Enhanced Gauss Cannon Launcher Improved Grenade Launcher Special Weapon Plasma Cutter Slashing Weapon Greatsword Special Melee Weapon Improved Datajack Build | -11 -10 -9 -8 -7 -6 -5 -5 -5 -5 -4 -4 -4 -4 -3 ------- Run | Scr Mat Mat Mat Fac Fac Fac Upp Upp Zhi Pro Fac Was Fac Res Slots Evolved 14 | . . 2 2 2 2 2 . . . . 2 . . 2 Power 1 | . . . . . . . . . . . . . . 1 Propulsion 3 | . . . 1 . . 2 . . . . . . . . Utility 10 | . . 2 1 2 2 . . . . . 2 . . 1 Weapon . | . . . . . . . . . . . . . . . Parts Attached 346 | 2 11 18 41 58 120 35 19 6 7 7 13 4 . 5 Power 18 | . 1 1 1 4 6 2 . 3 . . . . . . Engine 8 | . 1 1 1 4 1 . . . . . . . . . Core 5 | . . . . . 1 1 . 3 . . . . . . Reactor 5 | . . . . . 4 1 . . . . . . . . Propulsion 75 | 2 4 5 12 15 22 5 4 . . 2 2 1 . 1 Treads 34 | . . . 7 12 14 . 1 . . . . . . . Leg 2 | . . . . . . . . . . 1 1 . . . Wheel 27 | 2 4 5 5 3 7 . . . . . 1 . . . Hover 11 | . . . . . 1 5 3 . . 1 . 1 . . Flight 1 | . . . . . . . . . . . . . . 1 Utility 118 | . 3 7 7 15 45 16 4 . 7 2 8 2 . 2 Device 60 | . 1 4 1 4 29 7 3 . 4 1 3 2 . 1 Storage 6 | . 2 . 2 . 1 . . . 1 . . . . . Processor 5 | . . 1 . . 3 1 . . . . . . . . Hackware 16 | . . 2 1 6 1 3 . . . . 2 . . 1 Protection 31 | . . . 3 5 11 5 1 . 2 1 3 . . . Artifact . | . . . . . . . . . . . . . . . Weapon 135 | . 3 5 21 24 47 12 11 3 . 3 3 1 . 2 Energy Gun 36 | . . 2 11 12 10 . 1 . . . . . . . Energy Cannon 13 | . . 1 2 . 9 . . . . . . 1 . . Ballistic Gun 43 | . 3 2 6 3 20 8 1 . . . . . . . Ballistic Cannon 5 | . . . . 1 . 1 2 . . . 1 . . . Launcher 14 | . . . 2 2 4 1 1 1 . 1 2 . . . Special Weapon 4 | . . . . 1 3 . . . . . . . . . Impact Weapon . | . . . . . . . . . . . . . . . Slashing Weapon 19 | . . . . 4 1 2 6 2 . 2 . . . 2 Piercing Weapon . | . . . . . . . . . . . . . . . Special Melee Weapon 1 | . . . . 1 . . . . . . . . . . Unidentified Prototypes 25 | . . 3 4 3 5 3 . . 3 . 1 2 . 1 Corrupted Parts 2 | . . . 1 1 . . . . . . . . . . System Corruption 10 | . . . 2 8 . . . . . . . . . . Parts Lost 65 | . 2 1 7 8 23 2 . . . . 18 2 . 2 Power 3 | . . . . 1 1 . . . . . 1 . . . Propulsion 24 | . 1 1 3 4 8 . . . . . 5 1 . 1 Utility 24 | . . . 2 1 8 1 . . . . 10 1 . 1 Weapon 14 | . 1 . 2 2 6 1 . . . . 2 . . . Highest Loss Streak 11 | . 1 1 2 5 9 2 . . . . 11 2 . 1 Average Slot Usage (%) 91 | . 98 98 97 92 95 98 94 94 94 94 75 16 . 5 Engine 5 | . 14 11 9 6 1 1 . . . . . . . . Core 1 | . . . . . . 2 5 5 5 5 2 . . . Treads 5 | . . . 2 12 12 . . . . . . . . . Wheel 9 | . 28 21 23 4 5 . . . . . 2 . . . Hover 7 | . . . . . . 28 28 29 29 29 16 4 . . Device 8 | . 12 12 1 3 10 10 10 11 10 10 7 7 . . Storage 7 | . 14 11 9 7 6 5 5 5 5 5 4 . . . Processor 4 | . . 1 . . 7 9 11 11 11 11 9 . . . Hackware 20 | . . 17 26 31 25 20 17 17 17 17 18 4 . 1 Protection 4 | . . . 8 7 5 3 5 5 5 5 4 . . . Energy Gun 2 | . . 4 5 5 1 . . . . . . . . . Energy Cannon 1 | . . 5 3 . 2 . . . . . . . . . Ballistic Gun 8 | . 28 12 8 7 7 7 . . . . . . . . Slashing Weapon 1 | . . . . . . . 4 4 5 4 2 . . 1 Naked Turns 228 | . . . . . . . . . . . . 21 164 43 Heaviest Build 103 | 13 51 57 103 84 79 67 64 55 55 58 61 5 . 5 Greatest Support 69 | 32 32 26 60 60 65 69 62 62 62 62 62 14 3 7 Greatest Overweight (x) 8 | . 1 5 8 3 6 1 1 . . 1 3 . . 1 Average Overweight (x) 1 | . . 1 2 1 3 . . . . . . . . . Largest Inventory Capacity 25 | 8 20 20 25 20 20 20 20 20 20 20 20 5 5 5 Average Capacity 19 | 8 14 20 23 20 20 20 20 20 20 20 19 5 5 5 Most Carried 25 | 8 18 20 25 20 20 20 20 20 20 20 20 5 5 5 Average Carried 18 | 5 13 19 23 19 19 18 19 19 19 19 17 5 5 4 Final Capacity 20 | 8 20 20 20 20 20 20 20 20 20 20 5 5 5 5 Final Carried 20 | 8 18 20 20 20 19 20 20 20 20 20 5 5 5 5 Class Distribution -------------------- 56% | Hacker-Mutant 18% | Hacker-Scout 16% | Mutant 4% | Wizard-Mutant Dominant Class ---------------- Mutant | -10/Materials Hacker-Mutant | -9/Materials Hacker-Mutant | -8/Materials Hacker-Mutant | -7/Factory Hacker-Mutant | -6/Factory Hacker-Mutant | -5/Factory Hacker-Scout | -5/Upper Caves Hacker-Scout | -5/Upper Caves Hacker-Scout | -5/Zhirov Hacker-Scout | -4/Proximity Caves Hacker-Mutant | -4/Factory Mutant | -4/Waste Mutant | -4/Factory Mutant | -3/Research Resources | -11 -10 -9 -8 -7 -6 -5 -5 -5 -5 -4 -4 -4 -4 -3 ----------- Run | Scr Mat Mat Mat Fac Fac Fac Upp Upp Zhi Pro Fac Was Fac Res Matter Collected 7307 | 316 499 486 663 1174 2603 540 457 160 80 170 118 . . 41 Remotely 902 | . . . . . 902 . . . . . . . . . Salvage Created 12538 | 173 784 1833 1654 1927 3332 758 654 282 368 288 444 . . 41 Parts 600 | 11 67 113 102 81 140 39 18 7 . 9 8 . . 5 Haulers Intercepted 24 | . 2 5 5 4 6 1 . . . . 1 . . . Recyclers Shooed 20 | 1 3 3 1 . 12 . . . . . . . . . Parts Field Recycled . | . . . . . . . . . . . . . . . Retrieved Matter . | . . . . . . . . . . . . . . . Parts Self-Destructed 31 | . . . . . . . 8 16 . 7 . . . . Prevented 5 | . . . . . . . 2 . . 3 . . . . Kills | -11 -10 -9 -8 -7 -6 -5 -5 -5 -5 -4 -4 -4 -4 -3 ------- Run | Scr Mat Mat Mat Fac Fac Fac Upp Upp Zhi Pro Fac Was Fac Res Combat Hostiles Destroyed 174 | . 15 26 25 26 38 13 14 4 . 7 6 . . . Melee 9 | . . . . . . 3 2 1 . 2 1 . . . Guns 92 | . 15 18 17 21 18 3 . . . . . . . . Cannons 15 | . . 8 2 . 4 . . . . . 1 . . . AOE 55 | . . . 6 5 13 7 12 3 . 5 4 . . . Classes Destroyed 17 | 3 5 2 1 4 1 . 1 . . . . . . . Worker 13 | 1 2 1 2 1 4 1 . . . . . . . 1 Builder 4 | . . 2 . . 1 . . . . . . . . 1 Tunneler 6 | 3 . . 2 . 1 . . . . . . . . . Hauler 24 | . 2 5 5 4 6 1 . . . . 1 . . . Recycler 17 | 1 3 2 1 4 4 1 . . . . 1 . . . Minesweeper 1 | . . . . . . . 1 . . . . . . . Mechanic 2 | . . . . 1 1 . . . . . . . . . Operator 15 | . 3 4 3 3 2 . . . . . . . . . Watcher 13 | . 2 2 4 . 3 2 . . . . . . . . Swarmer 45 | . 9 . 6 2 4 9 6 4 . 5 . . . . Grunt 71 | . 6 19 12 11 14 1 6 . . . 2 . . . Brawler 1 | . . . . 1 . . . . . . . . . . Duelist 2 | . . . . 1 1 . . . . . . . . . Protector 1 | . . . . . 1 . . . . . . . . . Sentry 25 | . . 7 6 5 4 1 2 . . . . . . . Hunter 16 | . . . 1 2 9 . . . . 2 2 . . . Programmer 13 | . . . . 4 5 2 . . . . 2 . . . Decomposer 2 | . . . . . . . 2 . . . . . . . Packrat 4 | . . . . . . . 2 2 . . . . . . Best Kill Streak 12 | 2 11 6 8 6 10 8 12 4 . 5 7 . . 1 Combat Bots Only 12 | . 9 5 3 6 7 8 12 4 . 5 5 . . . Max Kills in Single Turn 7 | 1 1 1 3 3 7 7 7 2 . 3 2 . . 1 Gunslinging . | . . . . . . . . . . . . . . . Exploded 7 | . . . 2 2 6 7 7 2 . 3 2 . . . Melee 1 | . . . . . . 1 1 1 . 1 1 . . . Uniques/NPCs Destroyed . | . . . . . . . . . . . . . . . Combat | -11 -10 -9 -8 -7 -6 -5 -5 -5 -5 -4 -4 -4 -4 -3 -------- Run | Scr Mat Mat Mat Fac Fac Fac Upp Upp Zhi Pro Fac Was Fac Res Damage Taken 16319 | . 526 776 1460 2102 5228 1590 534 165 . 347 2455 111 73 952 Core 3843 | . 201 218 90 279 734 216 164 52 . 42 868 111 73 795 Absorbed by Shields 53 | . . . . . . 53 . . . . . . . . Core Remaining (%) 46 | 100 19 45 83 60 13 . . . . 52 . . 2 . Volleys Fired 691 | 24 96 99 98 113 210 16 15 2 . 2 16 . . . Largest 2 | 2 2 2 2 2 2 2 1 1 . 1 1 . . . Hottest 122 | 40 40 91 91 86 122 110 94 50 . 50 57 . . . Shots Fired 1288 | 48 190 185 192 218 392 28 15 2 . 2 16 . . . Gun 1129 | 48 190 150 164 212 342 20 3 . . . . . . . Cannon 132 | . . 35 25 . 44 7 10 . . . 11 . . . Launcher 22 | . . . 3 5 2 1 2 2 . 2 5 . . . Special 5 | . . . . 1 4 . . . . . . . . . Kinetic 862 | 48 190 113 95 128 244 23 10 . . . 11 . . . Thermal 307 | . . 35 55 64 146 4 3 . . . . . . . Explosive 22 | . . . 3 5 2 1 2 2 . 2 5 . . . Electromagnetic 97 | . . 37 39 21 . . . . . . . . . . Robot Hit Streak 25 | 5 21 12 25 23 25 4 3 2 . . 3 . . . Robot Miss Streak 12 | 8 6 3 4 3 8 2 8 12 . . 11 . . . Penetration Max 1 | . . . . . 1 1 . . . . . . . . Secondary Targets 7 | . . 1 1 3 2 . . . . . . . . . Max Gunslinging Chain 1 | . . 1 1 1 1 . . . . . . . . . Shots Hit Robots 918 | 23 109 131 136 170 273 20 13 7 10 7 15 . . 4 Core Hits 539 | 9 41 69 74 83 142 30 35 8 4 17 24 . . 3 Critical Kills 16 | . . . . . 12 4 . . . . . . . . Critical Parts Destroyed 17 | . . . 1 . 13 3 . . . . . . . . Critical Strikes 53 | . . . 7 4 31 8 1 . . . 2 . . . Burn 15 | . . . 5 4 6 . . . . . . . . . Destroy 33 | . . . 1 . 25 7 . . . . . . . . Blast 1 | . . . . . . . . . . . 1 . . . Corrupt 1 | . . . 1 . . . . . . . . . . . Sever 3 | . . . . . . 1 1 . . . 1 . . . Melee Attacks 88 | . . . . 12 1 9 28 7 10 8 8 . . 5 Impact . | . . . . . . . . . . . . . . . Slashing 87 | . . . . 11 1 9 28 7 10 8 8 . . 5 Piercing . | . . . . . . . . . . . . . . . Sneak Attacks 15 | . . . . 3 . . 6 2 . 1 . . . 3 Combat Hostiles 2 | . . . . . . . 1 . . 1 . . . . Follow-up Attacks . | . . . . . . . . . . . . . . . Damage Inflicted 26446 | 238 1155 2144 3276 4034 6359 1213 2503 866 1595 1415 1178 . . 470 Guns 12273 | 238 1154 1601 2171 2938 3871 300 . . . . . . . . Cannons 1653 | . . 501 459 . 500 54 . . . . 139 . . . Explosions 6578 | . . 42 646 848 1962 495 1234 194 . 423 734 . . . Melee 5886 | . . . . 238 . 364 1269 672 1595 992 305 . . 451 Ramming 23 | . 1 . . . 3 . . . . . . . . 19 Kinetic 7729 | 238 1154 1082 1066 1566 2184 300 . . . . 139 . . . Thermal 5668 | . . 543 997 1039 3035 54 . . . . . . . . Explosive 5372 | . . . 439 802 1051 495 1234 194 . 423 734 . . . Electromagnetic 1768 | . . 519 774 389 86 . . . . . . . . . Impact . | . . . . . . . . . . . . . . . Slashing 5886 | . . . . 238 . 364 1269 672 1595 992 305 . . 451 Piercing . | . . . . . . . . . . . . . . . Highest Corruption 22 | . 2 2 2 10 4 6 . . . . 3 12 22 . Average Corruption 3 | . 2 2 2 2 3 3 . . . . 2 10 22 . Corruption Purged 9 | . . . . 3 . 6 . . . . . . . . Effects 101 | . 2 8 1 20 44 10 . . . . 1 9 6 . Message Errors 28 | . . 5 . 5 11 1 . . . . 1 2 3 . Matter Fused 21 | . . . . 3 15 2 . . . . . . 1 . Heat Flow Errors 16 | . . 1 . 4 6 4 . . . . . 1 . . Energy Discharges 16 | . . 2 . 5 6 1 . . . . . 2 . . Parts Rejected 1 | . . . . . 1 . . . . . . . . . Data Loss (minor) 11 | . 2 . 1 3 3 1 . . . . . . 1 . Alerts 1 | . . . . . . . . . . . . . 1 . Misdirections 4 | . . . . . . . . . . . . 4 . . Weapon Failures 3 | . . . . . 2 1 . . . . . . . . Overload Shots . | . . . . . . . . . . . . . . . Overflow Damage 1535 | . . . 88 67 75 5 431 304 169 252 42 . . 102 Projectiles 1 | . . . 1 . . . . . . . . . . . Explosions 280 | . . . 87 67 75 . 32 . . 14 5 . . . Melee 1254 | . . . . . . 5 399 304 169 238 37 . . 102 Knockbacks 1 | . . . . . . . . . . . 1 . . . Impact . | . . . . . . . . . . . . . . . Kinetic 1 | . . . . . . . . . . . 1 . . . Secondary . | . . . . . . . . . . . . . . . Self-Inflicted Damage 1042 | . . . 351 171 277 . 13 . . 27 194 . . 9 Shots 26 | . . . 7 4 5 . 1 . . 1 8 . . . Rammed 7 | . 2 . . . 1 . . . . . . . . 4 Targets Rammed 7 | . 2 . . . 1 . . . . . . . . 4 Kicked . | . . . . . . . . . . . . . . . Crushed . | . . . . . . . . . . . . . . . Highest Temperature 327 | . 16 231 219 306 327 260 . . . . . 147 . . Average Temperature 58 | . 2 104 57 75 71 66 . . . . . 84 . . Received Heat Transfer 2973 | . 108 351 432 576 897 372 99 . . 33 60 . 9 36 Effects 1 | . . . . 1 . . . . . . . . . . Energy Bleed 1 | . . . . 1 . . . . . . . . . . Siege Activations . | . . . . . . . . . . . . . . . Robots Corrupted . | . . . . . . . . . . . . . . . Combat Hostiles . | . . . . . . . . . . . . . . . Parts Fried 3 | . . 1 1 1 . . . . . . . . . . Impact Corruptions . | . . . . . . . . . . . . . . . Robots Melted 3 | . . . . . 3 . . . . . . . . . Combat Hostiles 3 | . . . . . 3 . . . . . . . . . Parts Melted 35 | . . 2 2 11 19 1 . . . . . . . . Heat Transferred 10782 | . . 951 2261 2381 5089 100 . . . . . . . . Parts Sabotaged 2 | . . . . . . . . . . . 2 . . . Parts Stolen . | . . . . . . . . . . . . . . . Parts Stripped . | . . . . . . . . . . . . . . . Power Chain Reactions 7 | . . 2 4 1 . . . . . . . . . . Missiles Intercepted . | . . . . . . . . . . . . . . . Alert | -11 -10 -9 -8 -7 -6 -5 -5 -5 -5 -4 -4 -4 -4 -3 ------- Run | Scr Mat Mat Mat Fac Fac Fac Upp Upp Zhi Pro Fac Was Fac Res Peak Influence 1280 | 25 542 599 737 895 1280 920 . . . . 498 219 229 195 Initial 615 | . 16 94 87 296 415 615 . . . . 107 174 139 120 Average 400 | 14 293 301 263 342 576 791 . . . . 127 206 177 139 Maximum Alert Level 4 | . 2 2 3 3 4 3 . . . . 2 1 1 . Low Security (%) 31 | 100 18 29 51 33 12 . . . . . 97 38 67 100 Level 1 30 | . 61 42 25 38 26 . . . . . . 61 32 . Level 2 17 | . 19 28 13 14 21 18 . . . . 2 . . . Level 3 18 | . . . 9 13 29 81 . . . . . . . . Level 4 2 | . . . . . 9 . . . . . . . . . Level 5 . | . . . . . . . . . . . . . . . High Security . | . . . . . . . . . . . . . . . Max Security . | . . . . . . . . . . . . . . . Squads Dispatched 45 | . 5 5 4 9 11 5 . . . . 4 . 1 1 Investigation 4 | . 2 1 . . 1 . . . . . . . . . Extermination 9 | . . . . 2 3 2 . . . . 2 . . . Reinforcement 22 | . 3 4 3 3 5 . . . . . 2 . 1 1 Assault 7 | . . . . 2 2 3 . . . . . . . . Garrison 3 | . . . 1 2 . . . . . . . . . . Intercept . | . . . . . . . . . . . . . . . Construction Impeded 2 | . . . . . 1 . . . . . . . . 1 Haulers Reinforced 5 | . . . . 1 3 . . . . . 1 . . . Cargo Convoy Interrupts 1 | . . . . . . . . . . . 1 . . . Stealth | -11 -10 -9 -8 -7 -6 -5 -5 -5 -5 -4 -4 -4 -4 -3 --------- Run | Scr Mat Mat Mat Fac Fac Fac Upp Upp Zhi Pro Fac Was Fac Res Distress Signals 13 | . 1 2 4 1 2 1 . . . . 2 . . . Communications Jammed . | . . . . . . . . . . . . . . . Distress Signals . | . . . . . . . . . . . . . . . Times Spotted 341 | . 44 39 39 35 61 37 15 6 . 6 34 6 4 15 Peak Tracking Total 25 | . 7 5 7 5 7 13 12 4 . 3 25 6 2 14 Tactical Retreats 20 | . 3 4 . . 5 3 1 . . 2 1 . 1 . Traps | -11 -10 -9 -8 -7 -6 -5 -5 -5 -5 -4 -4 -4 -4 -3 ------- Run | Scr Mat Mat Mat Fac Fac Fac Upp Upp Zhi Pro Fac Was Fac Res Traps Triggered 14 | . 4 1 . 3 3 1 . . . . 1 . . 1 Indirectly . | . . . . . . . . . . . . . . . Trap Hack Attempts . | . . . . . . . . . . . . . . . Triggered . | . . . . . . . . . . . . . . . Disarmed . | . . . . . . . . . . . . . . . Reprogrammed . | . . . . . . . . . . . . . . . Reused . | . . . . . . . . . . . . . . . Traps Extracted . | . . . . . . . . . . . . . . . Installed . | . . . . . . . . . . . . . . . Triggered 1 | . . . . . . . . . . 1 . . . . Machines | -11 -10 -9 -8 -7 -6 -5 -5 -5 -5 -4 -4 -4 -4 -3 ---------- Run | Scr Mat Mat Mat Fac Fac Fac Upp Upp Zhi Pro Fac Was Fac Res Machines Disabled 40 | . 1 7 9 5 15 1 2 . . . . . . . Max in Single Turn 4 | . 1 1 2 2 4 1 1 . . . . . . . Garrison Access 4 | . . . 1 1 1 1 . . . . . . . . Machines Sabotaged . | . . . . . . . . . . . . . . . Garrisons Compromised . | . . . . . . . . . . . . . . . Overloaded Fab Kills . | . . . . . . . . . . . . . . . Fab Network Shutdowns 2 | . . . . 1 1 . . . . . . . . . Hacking | -11 -10 -9 -8 -7 -6 -5 -5 -5 -5 -4 -4 -4 -4 -3 --------- Run | Scr Mat Mat Mat Fac Fac Fac Upp Upp Zhi Pro Fac Was Fac Res Machines Accessed 63 | . 5 8 8 14 11 7 1 1 5 . 1 . 2 . Terminals 35 | . 5 8 5 6 5 3 1 . . . . . 2 . Fabricators 8 | . . . . 3 4 1 . . . . . . . . Repair Stations 2 | . . . 1 1 . . . . . . . . . . Recycling Units 5 | . . . . 3 1 1 . . . . . . . . Scanalyzers 4 | . . . 1 1 . 1 . . . . 1 . . . Garrison Access 3 | . . . 1 . 1 1 . . . . . . . . Total Hacks 220 | . 10 30 27 47 46 31 6 1 18 . 2 . 2 . Successful 160 | . 3 20 21 31 33 24 6 1 18 . 2 . 1 . Failed 58 | . 7 10 6 15 12 7 . . . . . . 1 . Catastrophic 4 | . 3 . . 1 . . . . . . . . . . Database Lockouts 2 | . . . . 1 1 . . . . . . . . . Manual 107 | . 11 16 15 27 23 14 . . . . . . 1 . Terminals 130 | . 10 30 19 25 25 13 6 . . . . . 2 . Fabricators 28 | . . . . 10 13 5 . . . . . . . . Repair Stations 5 | . . . 2 3 . . . . . . . . . . Recycling Units 15 | . . . . 6 6 3 . . . . . . . . Scanalyzers 18 | . . . 4 3 . 9 . . . . 2 . . . Garrison Access 5 | . . . 2 . 2 1 . . . . . . . . Terminal Hacks 88 | . 1 17 11 13 13 7 6 1 18 . . . 1 . Record 13 | . . . . . . . 6 1 6 . . . . . Part Schematic 8 | . . 1 2 1 . . . . 4 . . . . . Robot Analysis 20 | . 1 5 5 1 1 3 . . 4 . . . . . Prototype ID Bank 12 | . . 4 1 1 1 1 . . 4 . . . . . Level Access Points 3 | . . . 1 1 1 . . . . . . . . . Branch Access Points 3 | . . . 1 1 . 1 . . . . . . . . Emergency Access Points 1 | . . . . . . . . . . . . . 1 . Machine Index 2 | . . . . 1 1 . . . . . . . . . Terminal Index 5 | . . 1 1 1 1 1 . . . . . . . . Alert Level 2 | . . . . 1 1 . . . . . . . . . Unreport Threat 7 | . . 3 . 2 2 . . . . . . . . . Locate Traps 3 | . . 1 . 1 1 . . . . . . . . . Security Status 1 | . . . . 1 . . . . . . . . . . Transport Status 1 | . . . . . 1 . . . . . . . . . Recall Reinforcements 1 | . . . . . 1 . . . . . . . . . Hauler Manifests 3 | . . 1 . . 1 1 . . . . . . . . Registered Components 2 | . . 1 . . 1 . . . . . . . . . Registered Prototypes 1 | . . . . 1 . . . . . . . . . . Fabricator Hacks 12 | . . . . 4 6 2 . . . . . . . . Network Status 2 | . . . . 1 1 . . . . . . . . . Load Schematic 4 | . . . . 1 2 1 . . . . . . . . Build 6 | . . . . 2 3 1 . . . . . . . . Repair Station Hacks 4 | . . . 2 2 . . . . . . . . . . Scan Component 2 | . . . 1 1 . . . . . . . . . . Repair 2 | . . . 1 1 . . . . . . . . . . Recycling Unit Hacks 1 | . . . . . 1 . . . . . . . . . Retrieve Components 1 | . . . . . 1 . . . . . . . . . Scanalyzer 17 | . . . 4 2 . 9 . . . . 2 . . . Insert Component 8 | . . . 2 1 . 4 . . . . 1 . . . Analyze 9 | . . . 2 1 . 5 . . . . 1 . . . Garrison Access Hacks 3 | . . . 1 . 1 1 . . . . . . . . Seal Access 3 | . . . 1 . 1 1 . . . . . . . . Unauthorized Hacks 35 | . 2 3 3 10 12 5 . . . . . . . . Terminals 16 | . 2 3 3 3 3 2 . . . . . . . . Botnet 11 | . 1 2 2 2 2 2 . . . . . . . . Operators 5 | . 1 1 1 1 1 . . . . . . . . . Fabricators 10 | . . . . 3 5 2 . . . . . . . . Report 2 | . . . . 1 1 . . . . . . . . . Prioritize 3 | . . . . . 2 1 . . . . . . . . Siphon 1 | . . . . 1 . . . . . . . . . . Haulers 4 | . . . . 1 2 1 . . . . . . . . Repair Stations . | . . . . . . . . . . . . . . . Recycling Units 9 | . . . . 4 4 1 . . . . . . . . Monitor 2 | . . . . 1 1 . . . . . . . . . Reject 3 | . . . . 2 1 . . . . . . . . . Recyclers 3 | . . . . 1 1 1 . . . . . . . . Mask 1 | . . . . . 1 . . . . . . . . . Scanalyzers . | . . . . . . . . . . . . . . . Garrison Access . | . . . . . . . . . . . . . . . Data Cores Recovered . | . . . . . . . . . . . . . . . Used . | . . . . . . . . . . . . . . . Hacking Detections 48 | . 5 7 7 14 7 5 . . . . 1 . 2 . Full Trace Events 1 | . . 1 . . . . . . . . . . . . Feedback Events . | . . . . . . . . . . . . . . . Feedback Blocked . | . . . . . . . . . . . . . . . Robot Schematics Acquired . | . . . . . . . . . . . . . . . Robots Built . | . . . . . . . . . . . . . . . Matter . | . . . . . . . . . . . . . . . Time . | . . . . . . . . . . . . . . . Total Robot Build Rating . | . . . . . . . . . . . . . . . Part Schematics Acquired 16 | . . 1 4 2 . 4 . . 4 . 1 . . . Parts Built 6 | . . . . 1 3 2 . . . . . . . . Matter 909 | . . . . 142 599 168 . . . . . . . . Time 212 | . . . . 95 75 42 . . . . . . . . Total Part Build Rating 26 | . . . . 5 13 8 . . . . . . . . Parts Repaired 2 | . . . 1 1 . . . . . . . . . . Time 51 | . . . 32 19 . . . . . . . . . . Parts Recycled . | . . . . . . . . . . . . . . . Recycled Matter . | . . . . . . . . . . . . . . . Retrieved Matter . | . . . . . . . . . . . . . . . Retrieved Components 10 | . . . . . 10 . . . . . . . . . Parts Scanalyzed 8 | . . . 2 1 . 4 . . . . 1 . . . Part Schematics Acquired 8 | . . . 2 1 . 4 . . . . 1 . . . Parts Damaged . | . . . . . . . . . . . . . . . Bothacking | -11 -10 -9 -8 -7 -6 -5 -5 -5 -5 -4 -4 -4 -4 -3 ------------ Run | Scr Mat Mat Mat Fac Fac Fac Upp Upp Zhi Pro Fac Was Fac Res Used RIF Installer . | . . . . . . . . . . . . . . . Robots Hacked 1 | . . . . 1 . . . . . . . . . . Non-combat 1 | . . . . 1 . . . . . . . . . . Combat . | . . . . . . . . . . . . . . . Robot Hacks Applied 1 | . . . . 1 . . . . . . . . . . find_chute 1 | . . . . 1 . . . . . . . . . . Relay Couplers Released 7 | . . . . . 7 . . . . . . . . . Programmers 7 | . . . . . 7 . . . . . . . . . Robots Rewired . | . . . . . . . . . . . . . . . Allies Hacked . | . . . . . . . . . . . . . . . Hacks Repelled . | . . . . . . . . . . . . . . . Allies | -11 -10 -9 -8 -7 -6 -5 -5 -5 -5 -4 -4 -4 -4 -3 -------- Run | Scr Mat Mat Mat Fac Fac Fac Upp Upp Zhi Pro Fac Was Fac Res Total Allies 3 | . . . . . 3 . . . . . . . . . Largest Group 3 | . . . . . 3 . . . . . . . . . Highest-Rated Group 93 | . . . . . 93 . . . . . . . . . Highest-Rated Ally 31 | . . . . . 31 . . . . . . . . . Total Orders . | . . . . . . . . . . . . . . . Ally Attacks 17 | . . . . . 17 . . . . . . . . . Total Damage 292 | . . . . . 292 . . . . . . . . . Kills 1 | . . . . . 1 . . . . . . . . . Allies Corrupted . | . . . . . . . . . . . . . . . Allies Melted . | . . . . . . . . . . . . . . . Intel | -11 -10 -9 -8 -7 -6 -5 -5 -5 -5 -4 -4 -4 -4 -3 ------- Run | Scr Mat Mat Mat Fac Fac Fac Upp Upp Zhi Pro Fac Was Fac Res Robot Analysis Total 20 | . 1 5 5 1 1 3 . . 4 . . . . . Derelict Logs Recovered 3 | . . . . . . . 1 2 . . . . . . Drone Launches . | . . . . . . . . . . . . . . . Drone Recoveries . | . . . . . . . . . . . . . . . Exploration | -11 -10 -9 -8 -7 -6 -5 -5 -5 -5 -4 -4 -4 -4 -3 ------------- Run | Scr Mat Mat Mat Fac Fac Fac Upp Upp Zhi Pro Fac Was Fac Res Turns Passed 14743 | 153 1249 1459 1603 2425 3268 1064 936 507 178 758 670 115 164 194 Spaces Moved 10693 | 79 860 839 910 1198 1516 1254 984 691 196 851 468 210 327 310 Core 600 | . . . . . . . . . . . 69 51 327 153 Treads 441 | . . . 12 352 76 . 1 . . . . . . . Legs 2 | . . . . . . . . . . . 2 . . . Wheels 5066 | 79 860 839 898 846 1440 . . . . . 104 . . . Hover 4427 | . . . . . . 1254 983 691 196 851 293 159 . . Flight 157 | . . . . . . . . . . . . . . 157 Fastest Speed 35 | 100 95 105 105 115 120 64 64 64 64 64 50 40 50 35 Average Speed 98 | 100 103 119 122 143 150 69 65 64 64 64 81 42 50 52 Slowest Speed 280 | 100 110 155 210 260 270 134 260 64 64 138 280 50 50 100 Overloaded Moves . | . . . . . . . . . . . . . . . Propulsion Burnouts . | . . . . . . . . . . . . . . . Robots Hopped 6 | . . . . . . . . . . . . . . 6 Cave-ins Triggered . | . . . . . . . . . . . . . . . Teleports 1 | . . . . . . . . . . . 1 . . . Exploration Rate (%) 50 | 3 97 70 65 32 36 20 75 80 63 77 13 94 13 13 Regions Visited 14 Branch Regions 4 Pre-discovered Areas 3 | . . . . . . . . . 3 . . . . . Known Exits Taken 8 | . . . 1 1 1 1 1 1 1 1 . . . . Unknown Exits Taken 4 | 1 1 1 . . . . . . . . . . 1 . Scrap Searched 10 | . . . . . . . 5 2 . 3 . . . . Spaces Dug 105 | . . . 10 21 15 . 24 1 . 32 2 . . . Terrain Destroyed 595 | . . 3 113 75 140 28 53 44 . 41 98 . . . Melee 25 | . . . . 7 1 . 14 1 . . 2 . . . Projectile 51 | . . . . . 21 14 10 . . . 6 . . . AOE 514 | . . 3 113 68 113 14 29 43 . 41 90 . . . Terrain Rammed . | . . . . . . . . . . . . . . . Walls Destroyed . | . . . . . . . . . . . . . . . Machines Disabled . | . . . . . . . . . . . . . . . Actions | -11 -10 -9 -8 -7 -6 -5 -5 -5 -5 -4 -4 -4 -4 -3 --------- Run | Scr Mat Mat Mat Fac Fac Fac Upp Upp Zhi Pro Fac Was Fac Res Total 13581 | 112 1058 1120 1228 1724 2121 1403 1205 739 228 1042 716 233 326 326 Wait 1256 | . 55 122 101 250 151 38 131 18 . 167 197 19 . 7 Move 10671 | 78 859 838 909 1197 1515 1253 983 690 195 850 468 209 326 301 Hop 3 | . . . . . . . . . . . . . . 3 Pick Up 222 | 5 21 20 40 33 58 19 9 5 6 2 4 . . . Fast Attach 89 | . 1 7 10 12 21 9 9 2 5 3 2 4 . 4 Attach 94 | 2 2 3 11 14 28 13 8 1 . 2 9 . . 1 Detach 16 | . . . 1 1 3 1 4 2 . 1 2 . . 1 Swap 167 | . 8 8 20 32 73 13 2 3 3 2 3 . . . Drop 253 | 3 14 23 38 44 60 26 16 9 9 5 5 1 . . Fire 691 | 24 96 99 98 113 210 16 15 2 . 2 16 . . . Melee 88 | . . . . 12 1 9 28 7 10 8 8 . . 5 Ram 6 | . 2 . . . . . . . . . . . . 4 Kick . | . . . . . . . . . . . . . . . Crush 1 | . . . . . 1 . . . . . . . . . Escape Stasis 22 | . . . . 16 . 6 . . . . . . . . Rewire 2 | . . . . . . . . . . . 2 . . . Trap . | . . . . . . . . . . . . . . . Miscellaneous . | . . . . . . . . . . . . . . . Route ------- -11/Scrapyard -10/Materials (discovered 5 exits: *Mat x3 / [*Min x2]) -9/Materials (discovered 3 exits: *Mat / [*Min] / [*Sto]) -8/Materials (discovered 3 exits: *Fac x3) -7/Factory (discovered 6 exits: *Fac x4 / *Low x2) -6/Factory (discovered 4 exits: *Fac x4) -5/Factory (discovered 3 exits: *Fac / *Upp x2) -5/Upper Caves -5/Upper Caves -5/Zhirov -4/Proximity Caves -4/Factory -4/Waste -4/Factory -3/Research History --------- Turn | Location | Event 21 | -11/Scrapyard | Discovered new exit (range 3) 154 | -11/Scrapyard | Entered Materials 316 | -10/Materials | Discovered new exit (range 8) 320 | -10/Materials | Build established: Mutant 462 | -10/Materials | Destroyed 9 combat bots 969 | -10/Materials | Discovered new exit (range 11) 1026 | -10/Materials | Core integrity fell below 50% 1214 | -10/Materials | Discovered new exit (range 16) 1219 | -10/Materials | Discovered new exit (range 5) 1334 | -10/Materials | Core integrity fell below 20% 1342 | -10/Materials | Discovered new exit (range 15) 1403 | -10/Materials | Entered another Materials area 1403 | -9/Materials | Evolved 2 slots: Utility x2 1450 | -9/Materials | Discovered new exit (range 3) 1849 | -9/Materials | Discovered new exit (range 10) 2010 | -9/Materials | Build established: Hacker-Mutant 2241 | -9/Materials | Discovered new exit (range 8) 2421 | -9/Materials | Core integrity fell below 50% 2862 | -9/Materials | Entered another Materials area 2862 | -8/Materials | Evolved 2 slots: Propulsion x1, Utility x1 3423 | -8/Materials | Garrison activated, responded to threat 3744 | -8/Materials | Repaired Autogun 3818 | -8/Materials | Identified exit to Factory 4465 | -8/Materials | Entered Factory 4465 | -7/Factory | Evolved 2 slots: Utility x2 4982 | -7/Factory | Garrison activated, responded to threat 5132 | -7/Factory | Lost 5 parts (3n1u1w) 5375 | -7/Factory | Discovered new exit (range 4) 5402 | -7/Factory | Identified exit to Factory 5402 | -7/Factory | Identified exit to Lower Caves 6228 | -7/Factory | Repaired Imp. Utility Shielding 6317 | -7/Factory | Central database locked down 6571 | -7/Factory | Local fabrication network quarantined 6577 | -7/Factory | Fabricated Imp. Hacking Suite (x1) 6865 | -7/Factory | First assault squad dispatched 6889 | -7/Factory | System corruption reached 10% 6890 | -7/Factory | Entered another Factory area 6890 | -6/Factory | Evolved 2 slots: Utility x2 7120 | -6/Factory | Build established: Wizard-Mutant 7474 | -6/Factory | Identified exit to Factory 7655 | -6/Factory | Lost 4 parts (3n1u) 7691 | -6/Factory | Build established: Hacker-Mutant 8016 | -6/Factory | Allied Derelicts emerged from ambush trap array 8025 | -6/Factory | Central database locked down 8178 | -6/Factory | Found Prototype Launcher 8181 | -6/Factory | Found Prototype Launcher 8251 | -6/Factory | Identified Scatter Rocket Array (x2) 8546 | -6/Factory | Core integrity fell below 50% 8637 | -6/Factory | Lost 5 parts (1n2u2w) 8727 | -6/Factory | Fabricated Imp. Hacking Suite (x1) 8750 | -6/Factory | Fabricated Imp. Hacking Suite (x1) 8872 | -6/Factory | Fabricated Enh. Autogun (x1) 8872 | -6/Factory | Local fabrication network quarantined 9340 | -6/Factory | First assault squad dispatched 9465 | -6/Factory | Destroyed 7 combat bots 9466 | -6/Factory | Core integrity fell below 20% 9506 | -6/Factory | Lost 9 parts (1p2n4u2w) 9749 | -6/Factory | Build established: Mutant 10158 | -6/Factory | Entered another Factory area 10158 | -5/Factory | Evolved 2 slots: Propulsion x2 10380 | -5/Factory | Destroyed 8 combat bots 10467 | -5/Factory | Build established: Hacker-Mutant 10489 | -5/Factory | Discovered new exit (range 3) 10490 | -5/Factory | Identified exit to Factory 10704 | -5/Factory | Identified exit to Upper Caves 11058 | -5/Factory | First assault squad dispatched 11167 | -5/Factory | Fabricated Greatsword? 11222 | -5/Factory | Entered Upper Caves 11317 | -5/Upper Caves | Spotted B-75 Beast 11435 | -5/Upper Caves | Encountered a Warlord checkpoint 11479 | -5/Upper Caves | Discovered new exit (range 5) 11509 | -5/Upper Caves | Build established: Hacker-Scout 11751 | -5/Upper Caves | Destroyed 12 combat bots 11854 | -5/Upper Caves | Attracted the attention of an 0b10 base 12060 | -5/Upper Caves | Learned Armory terminal intel 12060 | -5/Upper Caves | Learned Research security intel 12060 | -5/Upper Caves | Learned Armory trap positions 12147 | -5/Upper Caves | Identified exit to Upper Caves 12158 | -5/Upper Caves | Entered another Upper Caves area 12285 | -5/Upper Caves | Encountered a Warlord checkpoint 12521 | -5/Upper Caves | Learned Factory interactive machine intel 12574 | -5/Upper Caves | Discovered new exit (range 9) 12579 | -5/Upper Caves | Identified exit to Zhirov 12665 | -5/Upper Caves | Entered Zhirov 12665 | -5/Zhirov | Discovered new exit (range 3) 12677 | -5/Zhirov | Met Zhirov 12689 | -5/Zhirov | Learned location of Quarantine (-3) 12689 | -5/Zhirov | Learned location of Testing (-2) 12689 | -5/Zhirov | Learned location of Command (-1) 12703 | -5/Zhirov | Zhirov requested help retrieving the SGEMP Prototype 12716 | -5/Zhirov | Found Alien Artifact 12716 | -5/Zhirov | Identified Integrated Dissipator 12716 | -5/Zhirov | Installed Integrated Dissipator, increased core heat dissipation (+20) 12727 | -5/Zhirov | Found Alien Artifact 12842 | -5/Zhirov | Identified exit to Proximity Caves 12843 | -5/Zhirov | Entered Proximity Caves 13578 | -4/Proximity Caves | Discovered exit to Factory (range 3) 13601 | -4/Proximity Caves | Entered Factory 13601 | -4/Factory | Evolved 2 slots: Utility x2 13602 | -4/Factory | Identified exit to Upper Caves 13603 | -4/Factory | Loaded intel: 46 interactive machine locations 13770 | -4/Factory | Found Quantum Capacitor 14057 | -4/Factory | Lost 11 parts (1p3n5u2w) 14175 | -4/Factory | Identified Transdimensional Reconstructor 14175 | -4/Factory | Warped through subspace 14256 | -4/Factory | Cargo convoy interrupted 14258 | -4/Factory | Core integrity fell below 50% 14271 | -4/Factory | Sucked down chute 14271 | -4/Factory | Entered Waste 14272 | -4/Waste | Core integrity fell below 20% 14282 | -4/Waste | Spotted C-40 Crusher 14286 | -4/Waste | EMP discharged 14286 | -4/Waste | System corruption reached 10% 14290 | -4/Waste | Spotted C-40 Crusher 14297 | -4/Waste | Lost 7 parts (2n5u) 14297 | -4/Waste | Spotted C-40 Crusher 14303 | -4/Waste | Spotted C-40 Crusher 14304 | -4/Waste | Spotted C-40 Crusher 14307 | -4/Waste | Spotted C-40 Crusher 14365 | -4/Waste | Crushed by Compactor (1 part destroyed, 1 dropped) 14365 | -4/Waste | Crushed by Compactor (1 part destroyed, 1 dropped) 14380 | -4/Waste | Discovered new exit (range 12) 14386 | -4/Waste | EMP discharged 14386 | -4/Waste | Entered Factory 14530 | -4/Factory | Build established: Mutant 14548 | -4/Factory | Discovered new exit (range 3) 14550 | -4/Factory | Entered Research 14550 | -3/Research | Evolved 2 slots: Power x1, Utility x1 14738 | -3/Research | Core integrity fell below 50% 14744 | -3/Research | Self-destructed Last Messages --------------- 14627_ ALERT: Construction progress impeded, dispatching reinforcements to local area. 14639_ Sneak attack on U-05 Engineer. 14639_ U-05 Engineer destroyed. 14642_ Acquired 28 matter. 14644_ Acquired Structural Scanner. 14656_ Slug penetrates Wall. 14672_ Penetrated by Slug. 14672_ Structural Scanner destroyed. 14672_ Slug penetrates Wall. 14673_ Penetrated by Slug. 14679_ Slug penetrates Wall. 14685_ Acquired Prototype Flight Unit. 14685_ Identified Cld. Impulse Thruster. 14687_ Acquired System Shield. 14716_ Slug penetrates Wall. 14719_ Penetrated by Slug. 14719_ Slug penetrates Wall. 14726_ U-05 Engineer lays Concrete. 14742_ Cld. Impulse Thruster destroyed. Map ----- +----------------------------------------------------+ | ?????????????????????????????????????????????????? | | ?????????????????????????????????????????????????? | | ?????????????????????????????????????????????????? | | ?????????????????????????????????????????????????? | | ?????????????????????????????????????????????????? | | ?????????????????????????????????????????????????? | | ?????????????????????????????????????????????????? | | ?????????????????????????????????????????????????? | | ?????????????????????????????????????????????????? | | ?????????????????????????????????????????????????? | | ?????????????????????????????????????????????????? | | ?????????????????????????????????????????????????? | | ?????????????????????????????????????????????????? | | ?????????????????????????????????????????????????? | | ?????????????????????????????????????????????????? | | ?????????????????????????????????????????????????? | | ?????????????????????????????????????????????????? | | ?????????????????????????????????????????????????? | | ?????????????????????????????????????????????????? | | ?????????????????????????????????????????????????? | | ????????????????????????######???????????????????? | | ????????????????????????# #???????????????????? | | ????????????????????????#! #???????????????????? | | ????????????????????????# #???????????????????? | | #######+######+#+######## #???????????????????? | | /@ #???????????????????? | | #### #???????????????????? | | #??# #???????????????????? | | #??# !#???????????????????? | | ################ #??# #???????????????????? | | #??????????????# #??######???????????????????? | | #??????????????# #???????????????????????????? | | #??????????????# #???????????????????????????? | | #??????????????# #???????????????????????????? | | #??????????????? #???????????????????????????? | | #??????????????? !???????????????????????????? | | ###??######????? ???????????????????????????? | | # #????? ???????????????????????????? | | # #?????##???????????????????????????? | | #/ """ #??????????????????????????????????? | | # """ #??????????????????????????????????? | | # """ #??????????????????????????????????? | | # #??????????????????????????????????? | | #? =#??????????????????????????????????? | | #??? ????????????????????????????????????? | | ######+########??????????????????????????????? | | #??????????????????????????????? | | #??????????????????????????????? | | #??????????????????????????????? | | #??????????????????????????????? | +----------------------------------------------------+ Best States ------------- Heat Dissipation 94 Coolant Potential 100 Energy Generation 23 Energy Capacity 670 Matter Stores 300 Matter Capacity 300 Sight Range 22 Robot Scan Range 15 Terrain Scan Range 16 Terrain Scan Density 85 ECM Strength 1 Additional Mass Support 9 Armor Coverage 600 Resistance: KI 30 Utility Shielding 66 Weapon Shielding 90 Evasion (%) 63 Armor Integrity Analysis 20 Recoil Reduction 3 Particle Charging 20 Kinecelleration 30 Salvage Targeting 2 Offensive Hacking 50 Defensive Hacking 20 Item Schematics ----------------- Mni. Grenade Launcher | -9/Materials | Hacked Arm. Treads | -8/Materials | Hacked Med. Armor Plating | -8/Materials | Hacked Enh. Autogun | -8/Materials | Scanalyzed System Shield | -8/Materials | Scanalyzed Imp. Hacking Suite | -7/Factory | Hacked Hrd. Heavy Armor Plating | -7/Factory | Scanalyzed Greatsword | -5/Factory | Scanalyzed Cmb. Gravmag System | -5/Factory | Scanalyzed Imp. Utility Shielding | -5/Factory | Scanalyzed Hrd. Medium Armor Plating | -5/Factory | Scanalyzed Assault Drone Bay | -5/Zhirov | Free Exp. Heat Sink | -5/Zhirov | Free Exp. Optical Array | -5/Zhirov | Free Imp. Arc Thrower | -5/Zhirov | Free Adv. Hacking Suite | -4/Factory | Scanalyzed Robot Schematics ------------------ None Fabricated ------------ Imp. Hacking Suite | x1 | -7/Factory Imp. Hacking Suite | x1 | -6/Factory Imp. Hacking Suite | x1 | -6/Factory Enh. Autogun | x1 | -6/Factory Greatsword | x2 | -5/Factory Alien Tech Used ----------------- Integrated Dissipator Transdimensional Reconstructor Achievements -------------- Streaker Challenges ------------ None Game ------ Seed MachineSniperStabilizer Manual? 0 Play Time 05:02:58 Cumulative 241.9 hours Start 2021.07.09 @ 09:16:24 End 2021.07.10 @ 00:44:13 Sessions 3 Manual Loads 0 Difficulty Rogue Special Mode None Game No. 135 Rogue 135 Adventurer 0 Explorer 0 Win Type - Total 4 Types 3/0/0/1/0/0/0/0/0 Lore% 68 Gallery% 77 Achievement% 52 Wizard Run 0 Options --------- ASCII 0 Keyboard 0 Movement Numpad Keybinds 0 Fullscreen 1 Font 18/SmallcapsGlow Map View 76x50 Tactical HUD 1 Map Filters NONE Filters NONE Steam 1 RUN: 2ff6e1d9-ba53-4851-8cb8-755b0300ce51